bitfinex-derivatives/quotes_ETHF0:USTF0_20250624
["timestamp","ask_amount","ask_price","bid_price","bid_amount"]
[1750727523436,0.7107,2407.6,2407.4,2.46387633]
[1750727523738,0.7107,2407.6,2407.4,10.02408633]
[1750727524535,0.7107,2407.6,2407.3,26.3386]
[1750727524536,1.54087,2407.6,2407.5,6.73]
[1750727525345,0.7107,2407.6,2407.5,6.73]
[1750727525538,0.7107,2407.6,2407.5,7.56019]
[1750727525744,1.3553,2407.9,2407.5,9.19387633]
[1750727526044,3.2078,2408.0,2407.8,3.29396633]
[1750727526246,0.82988,2408.4,2408.0,0.82999]
[1750727526543,0.98573938,2408.3,2408.2,2.46387633]
[1750727526738,0.98573938,2408.3,2408.2,9.19387633]
[1750727527340,4.75186,2408.5,2408.2,10.02382633]
[1750727527647,0.82992,2408.3,2408.2,2.46387633]
[1750727527942,0.82996,2408.2,2408.0,28.10687633]
[1750727528144,0.82996,2408.2,2408.0,2.46387633]
[1750727528343,0.82996,2408.2,2408.1,6.73]
[1750727528644,0.82996,2408.2,2408.0,28.10687633]
[1750727528645,0.82996,2408.2,2408.0,2.46387633]
[1750727528846,0.82996,2408.2,2408.1,6.73]
[1750727529348,1.4086,2408.3,2407.8,3.15547633]
[1750727529647,1.4086,2408.3,2408.1,6.719]
[1750727529648,0.82995,2408.2,2408.1,6.719]
[1750727530645,0.98436099,2408.2,2407.8,3.15547633]
[1750727530845,2.1088,2408.1,2407.9,32.358]
[1750727531044,0.83002,2408.0,2407.9,32.358]
[1750727531340,0.83002,2408.0,2407.9,6.719]
[1750727531547,0.83009,2407.8,2407.7,3.2078]
[1750727531744,0.83021,2407.5,2407.3,31.30967633]
[1750727531948,1.3583,2407.7,2407.1,3.18407633]
[1750727532245,0.83019,2407.5,2407.4,6.719]
[1750727533652,0.83018,2407.6,2407.4,6.719]
[1750727533950,0.83011,2407.8,2407.5,5.47959641]
[1750727534350,0.83013,2407.7,2407.5,30.28440641]
[1750727534546,0.83013,2407.7,2407.6,3.2078]
[1750727534745,0.7119,2407.9,2407.6,3.2078]
[1750727534951,1.8144168,2407.8,2407.7,6.718]
[1750727537053,0.9843268,2407.8,2407.4,0.6674]
[1750727537249,0.83009,2407.8,2407.7,6.718]
[1750727537450,1.81272223,2407.8,2407.7,6.718]
[1750727537754,0.83023,2407.4,2407.3,3.2078]
[1750727537953,2.78713,2407.9,2407.3,10.75604]
[1750727537954,0.7119,2407.9,2407.3,10.75604]
[1750727538149,0.83014,2407.7,2407.4,0.83022]
[1750727538355,0.83017,2407.6,2407.3,10.75604]
[1750727538651,0.83016,2407.7,2407.4,5.47962641]
[1750727538954,0.83018,2407.6,2407.4,4.64940641]
[1750727539253,0.83014,2407.7,2407.4,5.47962641]
[1750727539450,0.83016,2407.6,2407.4,6.16232641]
[1750727539653,0.83016,2407.6,2407.4,5.33210641]
[1750727540051,0.83016,2407.6,2407.4,6.16232641]
[1750727540958,0.83015,2407.7,2407.4,6.16232641]
[1750727541145,0.83015,2407.7,2407.5,0.83018]
[1750727541348,0.0637515,2407.8,2407.6,35.5588]
[1750727541548,0.0637515,2407.8,2407.7,5.47952641]
[1750727541759,0.8938415,2407.8,2407.7,4.64940641]
[1750727541960,0.8938415,2407.8,2407.7,36.99940641]
[1750727542851,0.8938415,2407.8,2407.7,36.99840641]
[1750727543859,0.8938515,2407.8,2407.7,32.349]
[1750727544769,0.8938515,2407.8,2407.7,33.17912]
[1750727545169,0.0637515,2407.8,2407.7,33.17912]
[1750727545654,0.8938415,2407.8,2407.7,32.349]
[1750727546256,0.0637515,2407.8,2407.7,33.17912]
[1750727547862,0.8938415,2407.8,2407.7,33.17912]
[1750727548357,0.0637515,2407.8,2407.7,32.346]
[1750727548559,0.0637515,2407.8,2407.7,33.17612]
[1750727548760,0.0637515,2407.8,2407.7,34.58932]
[1750727549161,3.8742,2408.4,2408.3,0.82992]
[1750727549366,0.6995,2408.5,2408.3,6.718]
[1750727549658,0.82988,2408.4,2408.3,6.718]
[1750727549858,0.6995,2408.5,2408.3,6.718]
[1750727550456,0.6995,2408.5,2408.4,0.82988]
[1750727550762,0.6995,2408.5,2408.3,6.718]
[1750727550954,0.82983,2408.6,2408.4,25.627]
[1750727551154,0.82983,2408.6,2408.4,26.45688]
[1750727551553,0.82985,2408.5,2408.4,25.627]
[1750727552351,0.82985,2408.5,2408.4,32.342]
[1750727552957,0.82995,2408.2,2408.1,3.2078]
[1750727553163,0.82995,2408.2,2407.9,54.552]
[1750727553164,0.83002,2408.0,2407.9,54.552]
[1750727553857,2.28092,2408.0,2407.9,54.552]
[1750727554062,3.26461931,2408.0,2407.9,54.552]
[1750727554260,0.83016,2407.6,2407.5,3.2078]
[1750727554458,0.83014,2407.7,2407.5,35.5468]
[1750727554766,1.4509,2408.0,2407.5,35.5468]
[1750727554955,0.83009,2407.8,2407.5,36.37698]
[1750727555363,2.28095,2408.0,2407.6,0.83013]
[1750727555758,0.83006,2407.9,2407.6,0.83013]
[1750727556269,2.28094,2408.0,2407.7,5.47951641]
[1750727556459,1.4509,2408.0,2407.7,4.64940641]
[1750727556765,1.4509,2408.0,2407.7,25.622]
[1750727556966,0.83009,2407.8,2407.7,25.622]
[1750727561662,0.83009,2407.8,2407.5,9.9248]
[1750727561663,0.83016,2407.6,2407.5,3.2078]
[1750727561859,0.83023,2407.4,2407.3,0.7108]
[1750727562062,0.83023,2407.4,2407.3,32.329]
[1750727562262,0.83026,2407.3,2407.2,53.52334334]
[1750727562457,2.6831,2407.6,2406.9,3.2078]
[1750727562458,2.07551,2407.5,2406.9,3.2078]
[1750727562660,0.83036,2407.0,2406.9,9.9168]
[1750727563363,1.81513425,2407.0,2406.9,9.9168]
[1750727563563,2.84706,2407.0,2406.9,9.9168]
[1750727563963,2.84706,2407.0,2406.9,3.2078]
[1750727565158,0.83034,2407.1,2406.9,7.85720641]
[1750727566058,0.83036,2407.0,2406.9,3.2078]
[1750727570071,1.4384,2407.3,2407.0,0.83035]
[1750727570264,1.3716,2407.4,2406.9,3.2078]
[1750727570470,0.8941115,2407.0,2406.9,3.2078]
[1750727570766,0.8941115,2407.0,2406.9,6.711]
[1750727571172,0.0637515,2407.0,2406.6,8.56940641]
[1750727571369,0.83043,2406.8,2406.7,32.332]
[1750727571574,2.0829,2406.9,2406.7,6.711]
[1750727571873,0.83043,2406.8,2406.7,6.711]
[1750727572071,0.83047,2406.7,2406.6,3.2078]
[1750727572367,0.83047,2406.7,2406.6,9.9188]
[1750727572776,2.20287,2406.7,2406.6,9.9188]
[1750727573668,0.83061,2406.3,2406.2,3.2078]
[1750727574871,4.5802,2406.7,2406.2,4.03842]
[1750727575073,1.3724,2406.7,2406.2,3.2078]
[1750727575375,0.83057,2406.4,2406.2,9.9198]
[1750727575563,0.83056,2406.5,2406.2,9.9198]
[1750727575768,0.83058,2406.4,2406.2,9.9198]
[1750727576169,0.83061,2406.3,2406.2,9.9198]
[1750727576371,0.83059,2406.4,2406.2,9.9198]
[1750727577171,0.83056,2406.5,2406.2,9.9198]
[1750727577573,0.83056,2406.5,2406.2,10.75043]
[1750727577972,0.83056,2406.5,2406.2,9.9198]
[1750727578279,0.83056,2406.5,2406.2,10.75044]
[1750727578672,0.83056,2406.5,2406.2,11.43464]
[1750727578878,0.83057,2406.4,2406.2,11.43464]
[1750727579178,1.3724,2406.7,2406.2,11.43464]
[1750727579179,0.83061,2406.3,2406.2,10.604]
[1750727579680,0.83059,2406.4,2406.2,10.604]
[1750727579879,0.83059,2406.4,2406.2,11.43464]
[1750727580375,0.83051,2406.6,2406.4,0.83056]
[1750727580678,0.83045,2406.8,2406.6,0.8305]
[1750727580977,0.83042,2406.9,2406.7,1.51465]
[1750727581178,0.83042,2406.9,2406.8,6.713]
[1750727581375,0.83042,2406.9,2406.8,9.9208]
[1750727583076,1.4113,2406.9,2406.7,6.713]
[1750727583280,2.24172,2406.9,2406.7,6.713]
[1750727583478,2.24172,2406.9,2406.7,7.54345]
[1750727583479,1.4113,2406.9,2406.7,7.54345]
[1750727583685,0.8941415,2407.0,2406.7,7.54345]
[1750727584181,0.8304,2406.9,2406.7,7.54345]
[1750727584687,0.83043,2406.8,2406.7,6.713]
[1750727585184,0.83037,2407.0,2406.7,7.54346]
[1750727585683,0.8941515,2406.9,2406.7,8.26536]
[1750727586178,0.8941515,2406.9,2406.8,3.2078]
[1750727587287,0.0637515,2406.9,2406.8,3.2078]
[1750727587486,0.0637515,2406.9,2406.8,4.03823]
[1750727588186,0.0637515,2406.9,2406.8,4.72053]
[1750727588886,0.8941515,2406.9,2406.8,3.8901]
[1750727589288,0.8941515,2406.9,2406.8,3.2078]
[1750727591876,0.8941515,2406.9,2406.8,9.9148]
[1750727593788,1.05009197,2406.9,2406.6,6.706]
[1750727593993,0.83047,2406.7,2406.6,6.706]
[1750727594298,2.96195,2406.8,2406.6,6.706]
[1750727594589,2.1315,2406.8,2406.5,3.2078]
[1750727594785,0.83061,2406.3,2406.2,9.9138]
[1750727597893,0.83061,2406.3,2406.2,3.2078]
[1750727598997,1.81590592,2406.3,2406.2,3.2078]
[1750727599801,3.26960592,2406.3,2406.2,3.2078]
[1750727600500,2.28431,2406.3,2406.2,3.2078]
[1750727601003,0.83074,2405.9,2405.8,9.9148]
[1750727601396,0.83074,2405.9,2405.8,3.2078]
[1750727601599,0.83074,2405.9,2405.8,9.9148]
[1750727602802,2.27744,2405.9,2405.8,9.9148]
[1750727603498,2.27744,2405.9,2405.8,3.2078]
[1750727606206,0.83074,2405.9,2405.8,3.2078]
[1750727607614,0.0637515,2406.3,2405.8,8.2078]
[1750727607813,0.0637515,2406.3,2406.1,7.85720641]
[1750727608111,0.0637515,2406.3,2406.2,8.1428]
[1750727608305,0.0637515,2406.3,2406.2,10.36864]
[1750727608506,0.8943615,2406.3,2406.2,9.538]
[1750727609214,0.0637515,2406.3,2406.2,9.538]
[1750727609414,0.0637515,2406.3,2406.2,10.36864]
[1750727610109,0.8943615,2406.3,2406.2,9.538]
[1750727612815,0.8943615,2406.3,2406.2,10.36864]
[1750727612816,0.0637515,2406.3,2406.2,10.36864]
[1750727613113,0.83036,2407.1,2406.9,0.83038]
[1750727613312,0.83036,2407.1,2407.0,17.35020641]
[1750727613915,0.83031,2407.2,2407.0,18.18056641]
[1750727614217,0.8303,2407.2,2407.0,18.18055641]
[1750727614521,4.89588,2407.6,2407.0,12.7008]
[1750727614812,0.98445533,2407.5,2407.0,12.7008]
[1750727615019,0.83033,2407.2,2407.0,12.7008]
[1750727615220,0.83033,2407.1,2407.0,12.7008]
[1750727616012,0.83033,2407.1,2407.0,11.3085]
[1750727616208,0.83033,2407.1,2407.0,10.6214]
[1750727616615,0.83,2408.1,2407.8,0.83007]
[1750727616807,2.1509,2408.4,2407.9,14.56420641]
[1750727617012,0.83002,2408.0,2407.9,7.85720641]
[1750727617212,0.83002,2408.0,2407.9,14.56420641]
[1750727617408,0.83002,2408.0,2407.9,9.9148]
[1750727617908,0.83002,2408.0,2407.9,6.707]
[1750727621116,5.0,2408.0,2407.4,47.858]
[1750727621413,0.83019,2407.5,2407.4,54.564]
[1750727621923,0.83019,2407.5,2407.4,47.858]
[1750727622126,0.83019,2407.5,2407.4,54.582]
[1750727623920,0.83019,2407.5,2407.4,6.724]
[1750727626623,0.83019,2407.5,2407.4,8.1729]
[1750727626817,0.83019,2407.5,2407.4,6.724]
[1750727627421,0.83023,2407.4,2407.3,3.2078]
[1750727627620,0.83023,2407.4,2407.3,9.9308]
[1750727628317,0.83023,2407.4,2407.3,3.2078]
[1750727628523,0.83023,2407.4,2407.3,9.9298]
[1750727630423,0.83021,2407.5,2407.3,9.9298]
[1750727630625,0.83021,2407.5,2407.3,10.76005]
[1750727630819,0.83023,2407.4,2407.3,9.9298]
[1750727631219,0.83021,2407.5,2407.3,10.76006]
[1750727631520,0.83023,2407.4,2407.3,9.9298]
[1750727631724,0.83021,2407.5,2407.3,10.76006]
[1750727631922,1.4542,2407.7,2407.4,0.83022]
[1750727632121,1.4542,2407.7,2407.3,10.76005]
[1750727632424,0.83023,2407.4,2407.3,9.9298]
[1750727633023,0.83023,2407.4,2407.3,6.722]
[1750727633223,0.83021,2407.5,2407.3,7.55226]
[1750727633425,0.83017,2407.6,2407.4,0.83023]
[1750727634624,0.83019,2407.5,2407.3,10.76004]
[1750727635022,0.83018,2407.6,2407.4,0.83023]
[1750727635626,1.4542,2407.7,2407.4,0.83023]
[1750727636023,0.83019,2407.5,2407.3,10.76004]
[1750727636225,1.4542,2407.7,2407.6,0.83016]
[1750727636428,0.6773,2407.9,2407.6,9.9298]
[1750727636729,0.8301,2407.8,2407.6,10.75994]
[1750727637132,2.94298,2407.9,2407.7,0.83012]
[1750727637532,0.83009,2407.8,2407.7,0.83012]
[1750727637829,0.83009,2407.8,2407.6,10.75994]
[1750727638431,0.83009,2407.8,2407.6,9.9298]
[1750727638624,0.83012,2407.7,2407.6,9.9298]
[1750727639236,0.83012,2407.7,2407.6,3.2078]
[1750727639529,2.16861,2407.8,2407.6,9.9298]
[1750727639723,1.3385,2407.8,2407.6,9.9298]
[1750727639932,1.3385,2407.8,2407.7,0.83012]
[1750727640134,0.6773,2407.9,2407.8,0.83009]
[1750727640635,1.50735,2407.9,2407.7,0.8301]
[1750727641133,0.6773,2407.9,2407.8,0.83009]
[1750727641336,1.50735,2407.9,2407.7,0.8301]
[1750727641733,0.83009,2407.8,2407.6,10.75993]
[1750727642236,0.6773,2407.9,2407.8,0.83009]
[1750727642533,1.50735,2407.9,2407.7,0.8301]
[1750727642936,0.6773,2407.9,2407.8,0.83009]
[1750727643734,1.3385,2408.3,2407.6,9.9298]
[1750727643937,3.2078,2408.7,2408.2,7.85720641]
[1750727644138,3.2078,2408.7,2408.4,0.82987]
[1750727644139,1.81206094,2408.6,2408.4,0.82987]
[1750727644341,0.82985,2408.5,2408.3,7.55189]
[1750727644638,0.82985,2408.5,2408.2,33.46320641]
[1750727644639,2.07454,2408.6,2408.2,6.722]
[1750727644829,2.1136,2408.4,2407.9,6.51635716]
[1750727645034,0.83,2408.1,2408.0,6.722]
[1750727645337,0.83002,2408.0,2407.9,3.2078]
[1750727645538,0.83002,2408.0,2407.9,9.9298]
[1750727646630,5.3214,2408.4,2407.9,9.9298]
[1750727646631,5.3214,2408.4,2407.9,3.2078]
[1750727646831,0.83002,2408.0,2407.9,9.9288]
[1750727647342,0.83,2408.1,2407.9,10.75885]
[1750727647744,0.83002,2408.0,2407.9,9.9288]
[1750727648227,0.83001,2408.1,2407.9,9.9288]
[1750727648836,0.83001,2408.1,2407.9,10.75885]
[1750727649240,0.82997,2408.2,2408.0,0.83001]
[1750727649543,2.1136,2408.4,2408.1,0.82998]
[1750727649544,0.82993,2408.3,2408.1,0.82998]
[1750727649738,3.2078,2408.7,2408.2,7.55093]
[1750727650039,0.82989,2408.4,2408.2,7.55093]
[1750727650243,0.82988,2408.5,2408.2,7.55093]
[1750727650538,0.82988,2408.4,2408.2,7.55093]
[1750727650739,2.19407,2408.5,2408.3,0.82991]
[1750727651235,1.52432,2408.6,2408.3,0.82992]
[1750727651429,0.82992,2408.3,2408.2,3.9075]
[1750727651636,0.82992,2408.3,2408.2,9.9288]
[1750727652034,1.3642,2408.5,2408.2,9.9288]
[1750727652035,0.82989,2408.4,2408.2,9.9288]
[1750727652237,0.82992,2408.3,2408.2,9.9288]
[1750727652542,1.3642,2408.5,2408.2,9.9288]
[1750727652743,0.82988,2408.4,2408.2,10.75873]
[1750727653144,0.82992,2408.3,2408.2,9.9288]
[1750727654044,0.82992,2408.3,2408.2,10.75875]
[1750727654243,0.8299,2408.4,2408.2,10.75875]
[1750727654746,0.82992,2408.3,2408.2,9.9288]
[1750727655543,0.8299,2408.4,2408.2,10.75875]
[1750727656141,2.19408,2408.5,2408.3,0.82992]
[1750727656336,0.82988,2408.5,2408.4,0.82988]
[1750727656538,0.82988,2408.4,2408.3,0.8299]
[1750727657246,0.6945,2408.6,2408.2,9.9288]
[1750727657444,0.8299,2408.4,2408.2,10.75875]
[1750727657947,1.4086,2408.5,2408.2,10.75875]
[1750727657948,0.82992,2408.3,2408.2,9.9288]
[1750727658246,0.8299,2408.4,2408.2,10.75875]
[1750727658946,0.82992,2408.3,2408.2,10.75875]
[1750727659144,0.82992,2408.3,2408.2,9.9328]
[1750727659345,2.23847,2408.5,2408.3,0.82992]
[1750727659543,0.82987,2408.5,2408.3,0.82992]
[1750727660446,0.6945,2408.6,2408.3,2.45660496]
[1750727660447,0.82988,2408.4,2408.3,2.45660496]
[1750727660645,0.82988,2408.4,2408.3,9.18160496]
[1750727662443,1.3178,2408.5,2408.3,10.01150496]
[1750727662444,2.14766,2408.5,2408.3,10.01150496]
[1750727662645,0.82988,2408.4,2408.3,9.18160496]
[1750727663247,2.14767,2408.5,2408.3,10.01152496]
[1750727663451,0.82987,2408.5,2408.3,10.01152496]
[1750727663653,0.82988,2408.4,2408.3,10.01152496]
[1750727663853,0.82988,2408.4,2408.3,9.18160496]
[1750727665055,0.82988,2408.4,2408.3,6.724]
[1750727666152,2.07485,2408.3,2407.9,3.2078]
[1750727666344,0.83012,2407.7,2407.6,9.9318]
[1750727666850,0.83012,2407.7,2407.6,6.724]
[1750727667243,4.561,2407.9,2407.5,6.725]
[1750727667450,3.51916,2407.6,2407.5,6.725]
[1750727670762,2.689,2407.6,2407.0,8.68714243]
[1750727671060,0.83027,2407.3,2407.2,6.726]
[1750727682363,2.689,2407.6,2407.2,7.55628]
[1750727682564,0.6616,2407.6,2407.4,0.83021]
[1750727682758,0.83014,2407.7,2407.5,7.53119]
[1750727682958,0.83012,2407.8,2407.6,8.68693243]
[1750727683158,0.83007,2407.9,2407.7,0.83012]
[1750727683568,0.83008,2407.9,2407.8,6.701]
[1750727683960,2.20254,2408.0,2407.8,6.701]
[1750727684268,0.7224,2408.1,2407.9,0.83002]
[1750727684465,0.82997,2408.2,2407.9,7.85679243]
[1750727684767,0.82997,2408.2,2408.0,0.83001]
[1750727684966,1.3385,2408.4,2407.9,7.85679243]
[1750727684967,0.82989,2408.4,2408.1,6.701]
[1750727685167,1.55227,2408.5,2408.2,4.03775]
[1750727685366,0.7224,2408.5,2408.3,0.8299]
[1750727685664,1.55225,2408.5,2408.2,8.68672243]
[1750727686260,0.7224,2408.5,2408.2,8.68672243]
[1750727686461,1.55227,2408.5,2408.2,8.68672243]
[1750727686764,0.82992,2408.3,2408.2,3.2078]
[1750727688368,0.82992,2408.3,2408.2,5.66463198]
[1750727689664,0.8299,2408.4,2408.2,5.66463198]
[1750727690275,0.82992,2408.3,2408.2,5.66463198]
[1750727691175,0.8299,2408.4,2408.2,5.66463198]
[1750727691377,0.82987,2408.5,2408.2,7.18966198]
[1750727691578,0.82987,2408.5,2408.4,2.45683198]
[1750727691761,0.82987,2408.5,2408.4,9.15683198]
[1750727694277,0.82982,2408.6,2408.4,9.98671198]
[1750727694471,5.2514,2408.8,2408.5,2.45683198]
[1750727694672,0.82981,2408.6,2408.5,2.45683198]
[1750727694876,0.82985,2408.5,2408.4,6.7]
[1750727696076,0.83002,2408.0,2407.9,3.8647]
[1750727696265,0.83001,2408.1,2407.9,6.32153198]
[1750727696469,2.0876,2408.4,2408.0,6.7]
[1750727696671,2.0876,2408.4,2407.9,6.32153198]
[1750727696672,0.83002,2408.0,2407.9,3.2078]
[1750727696872,0.83002,2408.0,2407.9,12.36463198]
[1750727697174,0.83001,2408.1,2407.9,12.36463198]
[1750727697678,2.0876,2408.4,2407.9,12.36463198]
[1750727697882,0.83001,2408.1,2407.9,12.36463198]
[1750727698275,0.82996,2408.2,2407.9,12.36463198]
[1750727698472,0.82996,2408.2,2408.1,2.45683198]
[1750727698689,0.82995,2408.2,2408.1,2.45683198]
[1750727699690,0.83002,2408.0,2407.9,12.36463198]
[1750727700282,0.83002,2408.0,2407.9,3.2078]
[1750727700478,0.83005,2407.9,2407.8,6.699]
[1750727700692,2.92685,2407.9,2407.8,6.699]
[1750727701387,6.13465,2407.9,2407.8,6.699]
[1750727701587,7.1163098,2407.9,2407.8,6.699]
[1750727702097,0.83016,2407.6,2407.5,2.45683198]
[1750727702301,0.83016,2407.6,2407.5,9.15583198]
[1750727702788,0.83016,2407.6,2407.5,6.699]
[1750727703597,0.83016,2407.6,2407.5,9.15583198]
[1750727704096,0.83013,2407.7,2407.5,9.15583198]
[1750727704395,2.0968,2407.9,2407.6,6.49478198]
[1750727704598,2.92685,2407.9,2407.8,2.45683198]
[1750727706996,0.83012,2407.7,2407.6,5.66463198]
[1750727707391,0.83016,2407.6,2407.5,6.699]
[1750727707593,2.17406,2407.6,2407.5,6.699]
[1750727707992,0.8303,2407.2,2407.1,47.828]
[1750727708198,0.83029,2407.3,2407.1,54.528]
[1750727708395,3.2078,2407.9,2407.3,0.83026]
[1750727708597,0.83012,2407.7,2407.6,2.45683198]
[1750727708798,1.81308341,2407.7,2407.6,2.45683198]
[1750727709097,3.17518341,2407.7,2407.6,2.45683198]
[1750727712403,0.83019,2407.5,2407.4,12.36463198]
[1750727712600,0.83019,2407.5,2407.4,9.9078]
[1750727712803,0.83019,2407.5,2407.4,3.2078]
[1750727713303,0.83019,2407.5,2407.4,5.66463198]
[1750727714301,0.83026,2407.3,2407.2,2.45683198]
[1750727714499,0.8303,2407.2,2407.1,57.7348]
[1750727714804,0.83061,2406.3,2406.2,12.36363198]
[1750727715302,0.83061,2406.3,2406.2,10.6275]
[1750727715505,0.83061,2406.3,2406.2,3.2078]
[1750727715696,0.83061,2406.3,2405.9,3.2078]
[1750727715697,0.83071,2406.0,2405.9,3.2078]
[1750727715999,1.436,2406.6,2405.9,3.2078]
[1750727716000,2.1416,2406.2,2405.9,5.66463198]
[1750727716303,0.83071,2406.0,2405.9,3.2078]
[1750727718705,2.15461,2406.0,2405.9,3.2078]
[1750727720300,0.83089,2405.5,2405.3,5.2546]
[1750727720502,4.5317,2406.0,2405.2,54.01966538]
[1750727720503,3.2078,2405.7,2405.2,53.18869538]
[1750727720706,0.83111,2404.9,2404.6,6.7]
[1750727720895,0.83113,2404.8,2404.6,6.7]
[1750727721100,0.83116,2404.7,2404.6,6.7]
[1750727722202,0.83115,2404.8,2404.6,6.7]
[1750727722597,0.83112,2404.9,2404.6,7.53118]
[1750727722802,0.83112,2404.8,2404.6,6.7]
[1750727723004,0.83111,2404.9,2404.6,7.53118]
[1750727723413,1.4218,2405.1,2404.7,8.69363538]
[1750727723414,0.83107,2405.0,2404.7,8.69363538]
[1750727723804,1.4218,2405.1,2404.7,3.2078]
[1750727724413,0.83116,2404.7,2404.6,6.702]
[1750727724615,0.83118,2404.7,2404.4,10.04084538]
[1750727724912,0.83118,2404.7,2404.5,6.703]
[1750727725504,0.83118,2404.7,2404.5,7.53423]
[1750727725906,0.83118,2404.7,2404.5,6.703]
[1750727726409,0.83118,2404.7,2404.5,7.53422]
[1750727726609,0.83114,2404.8,2404.5,7.53422]
[1750727726810,1.4218,2405.1,2404.5,7.53422]
[1750727727007,1.4218,2405.1,2404.4,8.52469538]
[1750727727208,1.4218,2405.1,2404.5,7.53421]
[1750727727209,0.83113,2404.8,2404.5,7.53421]
[1750727727410,0.83117,2404.7,2404.5,6.703]
[1750727727607,0.83112,2404.9,2404.6,0.83119]
[1750727727913,1.4218,2405.1,2404.5,6.703]
[1750727728107,0.83119,2404.6,2404.5,6.703]
[1750727728410,0.83119,2404.6,2404.4,15.22869538]
[1750727728608,3.2078,2404.9,2404.4,10.574]
[1750727728609,0.83123,2404.5,2404.4,10.574]
[1750727728805,0.83123,2404.5,2404.4,3.2078]
[1750727729913,0.83126,2404.4,2404.3,6.704]
[1750727730305,5.28586,2404.6,2403.9,6.705]
[1750727730505,0.83142,2404.0,2403.9,6.705]
[1750727731415,2.0135,2404.6,2404.1,0.83135]
[1750727731620,0.83131,2404.3,2404.1,7.86249538]
[1750727731814,0.83133,2404.2,2404.1,9.21149538]
[1750727732507,0.83132,2404.3,2404.1,9.21149538]
[1750727732706,0.83132,2404.3,2404.1,9.92249538]
[1750727732905,0.83133,2404.2,2404.1,15.27849538]
[1750727733107,0.83133,2404.2,2404.1,10.6238]
[1750727734511,0.83131,2404.3,2404.1,15.27849538]
[1750727734719,0.83131,2404.3,2404.1,16.10984538]
[1750727735016,0.83131,2404.3,2404.2,1.342]
[1750727736918,0.83133,2404.2,2404.1,8.57349538]
[1750727737109,0.83133,2404.2,2404.1,15.27949538]
[1750727737309,0.83133,2404.2,2404.1,3.2078]
[1750727737727,0.8950815,2404.2,2404.1,3.2078]
[1750727737920,0.83137,2404.1,2404.0,6.706]
[1750727738117,0.83147,2403.8,2403.7,3.932]
[1750727738419,0.83147,2403.8,2403.7,10.638]
[1750727739721,3.5966015,2404.2,2403.7,10.638]
[1750727739722,1.5182515,2404.2,2403.7,10.638]
[1750727740210,0.83145,2403.9,2403.7,10.638]
[1750727740411,0.83145,2403.9,2403.7,3.932]
[1750727740620,1.5182515,2404.2,2403.7,10.639]
[1750727740827,0.83147,2403.8,2403.7,10.639]
[1750727741120,0.83145,2403.9,2403.7,10.639]
[1750727741519,0.83142,2404.0,2403.7,10.639]
[1750727741714,0.83139,2404.1,2403.8,5.48614538]
[1750727741911,0.0637515,2404.2,2403.8,6.10729538]
[1750727742113,0.0637515,2404.2,2403.9,0.83142]
[1750727742314,0.83138,2404.1,2403.9,0.83142]
[1750727742622,0.8314,2404.0,2403.8,4.65469538]
[1750727743028,0.83139,2404.1,2403.8,5.48615538]
[1750727743211,0.83141,2404.0,2403.8,6.93875538]
[1750727743610,0.83141,2404.0,2403.8,6.10729538]
[1750727743825,0.83141,2404.0,2403.8,6.93875538]
[1750727744020,0.8314,2404.0,2403.8,6.93875538]
[1750727744421,0.83144,2403.9,2403.8,4.65469538]
[1750727744626,0.83147,2403.8,2403.7,10.639]
[1750727744826,0.83147,2403.8,2403.7,3.932]
[1750727745022,0.83147,2403.8,2403.7,9.9158]
[1750727745923,3.5052715,2404.2,2403.3,6.708]
[1750727745924,0.83161,2403.4,2403.3,6.708]
[1750727746117,4.03941,2403.4,2403.3,6.708]
[1750727748324,0.6836,2403.7,2403.3,6.708]
[1750727748519,0.83146,2403.9,2403.6,3.2078]
[1750727748722,3.2078,2404.3,2403.6,10.5909]
[1750727748723,0.7676515,2404.2,2403.6,10.5909]
[1750727749023,0.83148,2403.8,2403.6,10.5909]
[1750727749227,0.83146,2403.9,2403.6,11.42244]
[1750727749427,0.83147,2403.8,2403.6,11.42244]
[1750727749727,2.2526,2404.1,2403.8,0.83146]
[1750727749921,2.2526,2404.1,2403.7,7.52077538]
[1750727749922,0.83144,2403.9,2403.7,7.52077538]
[1750727750120,1.4212,2404.1,2403.7,7.52077538]
[1750727750121,0.83142,2404.0,2403.7,7.52077538]
[1750727751022,3.9263,2404.3,2403.9,4.03922]
[1750727751023,3.2078,2404.3,2403.9,4.03922]
[1750727751222,0.83137,2404.1,2404.0,11.36369538]
[1750727751929,3.2078,2404.3,2404.0,11.36369538]
[1750727752128,0.6971,2404.5,2404.0,13.53757538]
[1750727752327,0.9804408,2404.4,2404.0,11.36369538]
[1750727752631,0.83137,2404.1,2404.0,11.36369538]
[1750727752926,0.83135,2404.2,2404.0,11.36369538]
[1750727753432,0.83137,2404.1,2404.0,11.36369538]
[1750727753729,0.8313,2404.3,2404.0,12.19507538]
[1750727753932,0.83131,2404.3,2404.1,0.83135]
[1750727754427,0.6802,2404.7,2404.2,3.2078]
[1750727754727,1.81218451,2404.6,2404.4,0.83126]
[1750727754924,0.83121,2404.6,2404.4,0.83126]
[1750727755128,0.83126,2404.4,2404.3,11.36369538]
[1750727756227,0.83124,2404.5,2404.3,12.19499538]
[1750727756929,0.7045,2404.8,2404.3,11.36369538]
[1750727757132,0.83126,2404.4,2404.3,11.36369538]
[1750727757530,0.83124,2404.5,2404.3,12.19499538]
[1750727757722,0.83123,2404.5,2404.3,14.33337538]
[1750727757927,0.83122,2404.6,2404.4,0.83126]
[1750727758637,3.2078,2404.9,2404.4,1.4286]